fUSD/lending_fUSD_20240606
["ID","MTS","AMOUNT","RATE_DAILY","PERIOD"]
[328653491,1717679456803,-278.843408,0.00027397,7]
[328653493,1717679456812,-500.0,0.00027397,4]
[328653495,1717679456822,-753.07,0.00027397,4]
[328653497,1717679456832,-500.0,0.00027397,4]
[328653499,1717679456841,-500.0,0.00027397,4]
[328653501,1717679456851,-500.0,0.00027397,4]
[328653503,1717679456860,-2852.08,0.00027397,4]
[328653505,1717679456870,-500.0,0.00027397,4]
[328653507,1717679456880,-500.0,0.00027397,4]
[328653509,1717679456889,-513.53071159,0.00027397,4]
[328653511,1717679456898,-500.0,0.00027397,4]
[328653513,1717679456907,-500.0,0.00027397,4]
[328653515,1717679456917,-500.0,0.00027397,4]
[328653517,1717679456926,-500.0,0.00027397,4]
[328653519,1717679456935,-511.63833257,0.00027397,4]
[328653521,1717679456944,-500.0,0.00027397,4]
[328653523,1717679456953,-500.0,0.00027397,4]
[328653525,1717679456963,-500.0,0.00027397,4]
[328653527,1717679456973,-500.0,0.00027397,4]
[328653529,1717679456982,-500.0,0.00027397,4]
[328653531,1717679456992,-771.5,0.00027397,4]
[328653533,1717679457001,-500.0,0.00027397,4]
[328653535,1717679457010,-759.84,0.00027397,4]
[328653537,1717679457019,-1734.18,0.00027397,4]
[328653538,1717679457028,-565.1259486,0.00027397,4]
[328653540,1717679457037,-619.91,0.00027397,4]
[328653542,1717679457046,-500.0,0.00027397,4]
[328653544,1717679457056,-535.4877246,0.00027397,4]
[328653547,1717679457065,-500.0,0.00027397,4]
[328653549,1717679457074,-1121.86,0.00027397,4]
[328653550,1717679457084,-548.62028029,0.00027397,4]
[328653552,1717679457093,-500.0,0.00027397,4]
[328653555,1717679457102,-500.0,0.00027397,4]
[328653557,1717679457111,-500.0,0.00027397,4]
[328653558,1717679457122,-500.0,0.00027397,4]
[328653560,1717679457131,-582.1108461,0.00027397,4]
[328653562,1717679457140,-500.0,0.00027397,4]
[328653564,1717679457150,-687.15,0.00027397,4]
[328653566,1717679457159,-529.85876981,0.00027397,4]
[328653569,1717679457169,-1034.45,0.00027397,4]
[328653571,1717679457178,-500.0,0.00027397,4]
[328653573,1717679457188,-152.859279,0.00027397,7]
[328653575,1717679457198,-152.859279,0.00027397,7]
[328653577,1717679457207,-500.0,0.00027397,4]
[328653579,1717679457216,-152.859279,0.00027397,7]
[328653581,1717679457226,-500.0,0.00027397,4]
[328653583,1717679457235,-516.5332029,0.00027397,4]
[328653585,1717679457245,-500.0,0.00027397,4]
[328653587,1717679457254,-749.46,0.00027397,4]
[328653589,1717679457264,-500.0,0.00027397,4]
[328653591,1717679457273,-500.0,0.00027397,4]
[328653593,1717679457283,-151.0,0.00027397,7]
[328653595,1717679457296,-1100.66,0.00027397,4]
[328653597,1717679457305,-500.0,0.00027397,4]
[328653599,1717679457314,-1356.27,0.00027397,4]
[328653601,1717679457324,-500.0,0.00027397,4]
[328653603,1717679457336,-500.0,0.00027397,4]
[328653605,1717679457345,-500.0,0.00027397,4]
[328653607,1717679457354,-500.0,0.00027397,4]
[328653609,1717679457364,-500.0,0.00027397,4]
[328653611,1717679457373,-500.0,0.00027397,4]
[328653613,1717679457383,-500.0,0.00027397,4]
[328653615,1717679457392,-500.0,0.00027397,4]
[328653617,1717679457402,-152.859279,0.00027397,7]
[328653619,1717679457413,-529.08690958,0.00027397,4]
[328653621,1717679457422,-500.0,0.00027397,4]
[328653623,1717679457431,-152.859279,0.00027397,7]
[328653625,1717679457440,-500.0,0.00027397,4]
[328653627,1717679457450,-152.859279,0.00027397,7]
[328653629,1717679457459,-538.43180366,0.00027397,4]
[328653631,1717679457468,-500.0,0.00027397,4]
[328653633,1717679457477,-373.01468682,0.00027397,4]
[328653635,1717679457487,-500.0,0.00027397,4]
[328653637,1717679457496,-664.86,0.00027397,4]
[328653639,1717679457506,-500.0,0.00027397,4]
[328653641,1717679457515,-206.30262263,0.00027397,4]
[328653643,1717679457524,-999.47,0.00027397,4]
[328653644,1717679457533,-535.93175327,0.00027397,4]
[328653646,1717679457543,-501.72,0.00027397,4]
[328653648,1717679457552,-3256.83,0.00027397,4]
[328653650,1717679457561,-500.0,0.00027397,4]
[328653652,1717679457570,-1191.0,0.00027397,4]
[328653654,1717679457579,-623.07,0.00027397,4]
[328653656,1717679457589,-523.18973266,0.00027397,4]
[328653672,1717679457724,-513.73968724,0.00027397,4]
[328653674,1717679457733,-500.0,0.00027397,4]
[328653676,1717679457743,-500.0,0.00027397,4]
[328653678,1717679457752,-500.0,0.00027397,4]
[328653680,1717679457761,-500.0,0.00027397,4]
[328653682,1717679457771,-187.834432,0.00027397,7]
[328653684,1717679457780,-500.0,0.00027397,4]
[328653686,1717679457790,-187.834432,0.00027397,7]
[328653688,1717679457799,-151.0,0.00027397,7]
[328653690,1717679457808,-187.834432,0.00027397,7]
[328653692,1717679457818,-151.0,0.00027397,7]
[328653694,1717679457827,-500.0,0.00027397,4]
[328653696,1717679457837,-233.611318,0.00027397,7]
[328653698,1717679457846,-500.0,0.00027397,4]
[328653700,1717679457855,-500.0,0.00027397,4]
[328653702,1717679457865,-500.0,0.00027397,4]
[328653704,1717679457875,-500.0,0.00027397,4]
[328653706,1717679457884,-770.51,0.00027397,4]
[328653708,1717679457893,-187.834432,0.00027397,7]
[328653710,1717679457903,-500.0,0.00027397,4]
[328653712,1717679457912,-187.834432,0.00027397,7]
[328653714,1717679457922,-187.834432,0.00027397,7]
[328653716,1717679457932,-500.0,0.00027397,4]
[328653718,1717679457941,-500.0,0.00027397,4]
[328653720,1717679457951,-500.0,0.00027397,4]
[328653722,1717679457962,-541.2008462,0.00027397,4]
[328653724,1717679457971,-500.0,0.00027397,4]
[328653726,1717679457980,-500.0,0.00027397,4]
[328653728,1717679457989,-500.0,0.00027397,4]
[328653730,1717679457999,-500.0,0.00027397,4]
[328653732,1717679458009,-6131.19,0.00027397,4]
[328653734,1717679458019,-500.0,0.00027397,4]
[328653736,1717679458028,-1358.85,0.00027397,4]
[328653738,1717679458037,-500.0,0.00027397,4]
[328653740,1717679458047,-583.74,0.00027397,4]
[328653742,1717679458056,-535.14832132,0.00027397,4]
[328653744,1717679458065,-500.0,0.00027397,4]
[328653746,1717679458075,-500.0,0.00027397,4]
[328653748,1717679458085,-500.0,0.00027397,4]
[328653750,1717679458094,-500.0,0.00027397,4]
[328653752,1717679458104,-500.0,0.00027397,4]
[328653754,1717679458113,-533.61984207,0.00027397,4]
[328653756,1717679458123,-729.63,0.00027397,4]
[328653758,1717679458133,-539.34317778,0.00027397,4]
[328653760,1717679458142,-500.0,0.00027397,4]
[328653762,1717679458152,-1964.93,0.00027397,4]
[328653764,1717679458161,-500.0,0.00027397,4]
[328653766,1717679458170,-500.0,0.00027397,4]
[328653768,1717679458179,-500.0,0.00027397,4]
[328653770,1717679458188,-803.38,0.00027397,4]
[328653772,1717679458198,-500.0,0.00027397,4]
[328653774,1717679458208,-824.05,0.00027397,4]
[328653776,1717679458218,-500.0,0.00027397,4]
[328653778,1717679458228,-500.0,0.00027397,4]
[328653780,1717679458237,-504.02,0.00027397,4]
[328653782,1717679458248,-500.0,0.00027397,4]
[328653784,1717679458257,-545.4409505,0.00027397,4]
[328653786,1717679458266,-639.95,0.00027397,4]
[328653788,1717679458276,-151.0,0.00027397,7]
[328653790,1717679458285,-151.0,0.00027397,7]
[328653792,1717679458299,-1313.9,0.00027397,4]
[328653794,1717679458309,-151.0,0.00027397,7]
[328653796,1717679458318,-500.0,0.00027397,4]
[328653798,1717679458328,-500.0,0.00027397,4]
[328653800,1717679458339,-500.0,0.00027397,4]
[328653802,1717679458349,-500.0,0.00027397,4]
[328653804,1717679458358,-151.0,0.00027397,7]
[328653806,1717679458368,-296.818045,0.00027397,7]
[328653808,1717679458379,-500.0,0.00027397,4]
[328653810,1717679458389,-500.0,0.00027397,4]
[328653812,1717679458399,-500.0,0.00027397,4]
[328653814,1717679458409,-500.0,0.00027397,4]
[328653816,1717679458418,-526.71710034,0.00027397,4]
[328653818,1717679458428,-741.73,0.00027397,4]
[328653820,1717679458439,-500.0,0.00027397,4]
[328653822,1717679458449,-599.55,0.00027397,4]
[328653824,1717679458458,-599.55,0.00027397,4]
[328653826,1717679458468,-599.55,0.00027397,4]
[328653828,1717679458478,-500.0,0.00027397,4]
[328653830,1717679458487,-599.55,0.00027397,4]
[328653832,1717679458498,-500.0,0.00027397,4]
[328653834,1717679458507,-599.55,0.00027397,4]
[328653836,1717679458517,-500.0,0.00027397,4]
[328653838,1717679458526,-599.55,0.00027397,4]
[328653840,1717679458536,-599.55,0.00027397,4]
[328653842,1717679458546,-3521.75,0.00027397,4]
[328653844,1717679458555,-599.55,0.00027397,4]
[328653846,1717679458564,-808.0,0.00027397,4]
[328653848,1717679458573,-599.55,0.00027397,4]
[328653850,1717679458583,-500.0,0.00027397,4]
[328653852,1717679458592,-599.55,0.00027397,4]
[328653854,1717679458601,-599.55,0.00027397,4]
[328653856,1717679458610,-599.55,0.00027397,4]
[328653858,1717679458619,-500.0,0.00027397,4]
[328653860,1717679458630,-500.0,0.00027397,4]
[328653862,1717679458639,-500.63,0.00027397,4]
[328653863,1717679458648,-521.68640352,0.00027397,4]
[328653865,1717679458657,-599.55,0.00027397,4]
[328653866,1717679458666,-500.0,0.00027397,4]
[328653867,1717679458676,-536.28447832,0.00027397,4]
[328653868,1717679458685,-163.522304,0.00027397,7]
[328653869,1717679458695,-500.0,0.00027397,4]
[328653870,1717679458704,-4503.8,0.00027397,4]
[328653871,1717679458713,-500.0,0.00027397,4]
[328653872,1717679458723,-500.0,0.00027397,4]
[328653873,1717679458732,-553.79879847,0.00027397,4]
[328653874,1717679458742,-589.08,0.00027397,4]
[328653876,1717679458751,-555.93,0.00027397,4]
[328653878,1717679458761,-500.0,0.00027397,4]
[328653880,1717679458771,-500.0,0.00027397,4]
[328653882,1717679458780,-792.41,0.00027397,4]
[328653884,1717679458789,-541.22013307,0.00027397,4]
[328653886,1717679458798,-539.80659649,0.00027397,4]
[328653888,1717679458808,-500.0,0.00027397,4]
[328653890,1717679458817,-500.0,0.00027397,4]
[328653892,1717679458827,-500.0,0.00027397,4]
[328653894,1717679458836,-4164.78,0.00027397,4]
[328653896,1717679458845,-500.0,0.00027397,2]
[328653898,1717679458854,-2083.28,0.00027397,4]
[328653900,1717679458864,-740.98,0.00027397,4]
[328653902,1717679458873,-500.0,0.00027397,4]
[328653904,1717679458882,-536.66,0.00027397,4]
[328653906,1717679458892,-804.63,0.00027397,4]
[328653908,1717679458901,-5317.56,0.00027397,4]
[328653910,1717679458910,-315.10521603,0.00027397,4]
[328653912,1717679458919,-500.0,0.00027397,4]
[328653914,1717679458929,-500.0,0.00027397,4]
[328653916,1717679458938,-500.0,0.00027397,4]
[328653918,1717679458947,-668.22,0.00027397,4]
[328653920,1717679458956,-500.0,0.00027397,4]
[328653922,1717679458966,-512.54353491,0.00027397,4]
[328653924,1717679458975,-151.0,0.00027397,7]
[328653926,1717679458984,-151.0,0.00027397,7]
[328653928,1717679458994,-151.0,0.00027397,7]
[328653930,1717679459003,-6092.27,0.00027397,4]
[328653932,1717679459013,-529.86477327,0.00027397,4]
[328653934,1717679459022,-1907.88,0.00027397,4]
[328653936,1717679459031,-500.0,0.00027397,4]
[328653938,1717679459040,-507.18726508,0.00027397,4]
[328653940,1717679459049,-510.26534275,0.00027397,4]
[328653942,1717679459059,-1102.67,0.00027397,4]
[328653944,1717679459068,-500.0,0.00027397,4]
[328653946,1717679459077,-2734.86,0.00027397,4]
[328653948,1717679459086,-530.42861688,0.00027397,4]
[328653950,1717679459095,-151.0,0.00027397,7]
[328653952,1717679459104,-1875.6,0.00027397,4]
[328653954,1717679459113,-151.0,0.00027397,7]
[328653956,1717679459123,-151.0,0.00027397,7]
[328653958,1717679459133,-500.0,0.00027397,4]
[328653960,1717679459142,-500.0,0.00027397,4]
[328653962,1717679459151,-500.0,0.00027397,4]
[328653964,1717679459160,-500.0,0.00027397,4]
[328653966,1717679459170,-500.0,0.00027397,4]
[328653968,1717679459179,-746.59,0.00027397,4]
[328653970,1717679459188,-151.0,0.00027397,7]
[328653971,1717679459197,-1788.91,0.00027397,4]
[328653972,1717679459207,-151.0,0.00027397,7]
[328653973,1717679459215,-500.0,0.00027397,4]
[328653974,1717679459225,-225.072849,0.00027397,7]
[328653975,1717679459234,-2587.95,0.00027397,4]
[328653976,1717679459244,-504.0,0.00027397,4]
[328653977,1717679459254,-526.44872734,0.00027397,4]
[328653978,1717679459263,-500.0,0.00027397,4]
[328653979,1717679459272,-500.0,0.00027397,4]
[328653980,1717679459281,-507.46709295,0.00027397,4]
[328653981,1717679459294,-500.0,0.00027397,4]
[328653982,1717679459303,-510.87,0.00027397,4]
[328653983,1717679459312,-500.0,0.00027397,4]
[328653984,1717679459321,-2580.4,0.00027397,4]
[328653985,1717679459332,-765.61,0.00027397,4]
[328653986,1717679459342,-1474.65,0.00027397,4]
[328653987,1717679459351,-500.0,0.00027397,4]
[328653988,1717679459359,-500.0,0.00027397,4]
[328653989,1717679459371,-500.0,0.00027397,4]
[328653990,1717679459382,-1088.73,0.00027397,4]
[328653991,1717679459391,-500.0,0.00027397,4]
[328653992,1717679459401,-4348.1,0.00027397,4]
[328653993,1717679459411,-500.0,0.00027397,4]
[328653994,1717679459420,-500.0,0.00027397,4]
[328653995,1717679459430,-500.0,0.00027397,4]
[328653996,1717679459440,-500.0,0.00027397,4]
[328653997,1717679459450,-1213.41,0.00027397,4]
[328653998,1717679459460,-500.0,0.00027397,4]
[328653999,1717679459469,-500.0,0.00027397,4]
[328654000,1717679459479,-500.0,0.00027397,4]
[328654001,1717679459489,-990.16,0.00027397,4]
[328654002,1717679459498,-289.49888427,0.00027397,4]
[328654003,1717679459507,-500.0,0.00027397,4]
[328654004,1717679459516,-500.0,0.00027397,4]
[328654005,1717679459525,-201.508748,0.00027397,7]
[328654006,1717679459534,-2562.2,0.00027397,4]
[328654007,1717679459544,-201.508748,0.00027397,7]
[328654008,1717679459553,-201.508748,0.00027397,7]
[328654009,1717679459563,-540.22007236,0.00027397,4]
[328654010,1717679459572,-1677.16,0.00027397,4]
[328654011,1717679459581,-500.0,0.00027397,4]
[328654012,1717679459590,-3408.43,0.00027397,4]
[328654013,1717679459599,-500.0,0.00027397,4]
[328654014,1717679459610,-500.0,0.00027397,4]
[328654015,1717679459619,-500.0,0.00027397,4]
[328654016,1717679459629,-500.0,0.00027397,4]
[328654017,1717679459639,-201.508748,0.00027397,7]
[328654018,1717679459648,-201.508748,0.00027397,7]
[328654019,1717679459778,-201.508748,0.00027397,7]
[328654020,1717679459788,-500.0,0.00027397,4]
[328654021,1717679459797,-500.0,0.00027397,4]
[328654022,1717679459806,-500.0,0.00027397,4]
[328654023,1717679459816,-500.0,0.00027397,4]
[328654024,1717679459825,-899.77,0.00027397,4]
[328654025,1717679459835,-500.0,0.00027397,4]
[328654026,1717679459844,-514.7500649,0.00027397,4]
[328654027,1717679459853,-1209.55,0.00027397,4]
[328654028,1717679459863,-1076.33,0.00027397,4]
[328654029,1717679459872,-500.0,0.00027397,4]
[328654030,1717679459882,-500.0,0.00027397,4]
[328654031,1717679459892,-566.61,0.00027397,4]
[328654032,1717679459901,-500.0,0.00027397,4]
[328654033,1717679459911,-829.84,0.00027397,4]
[328654034,1717679459920,-523.88790318,0.00027397,4]
[328654035,1717679459930,-781.95,0.00027397,4]
[328654036,1717679459940,-151.0,0.00027397,7]
[328654037,1717679459950,-1489.34,0.00027397,4]
[328654038,1717679459959,-151.0,0.00027397,7]
[328654039,1717679459969,-157.720366,0.00027397,7]
[328654041,1717679459978,-500.0,0.00027397,4]
[328654043,1717679459987,-500.0,0.00027397,4]
[328654045,1717679459998,-500.0,0.00027397,4]
[328654047,1717679460007,-230.244897,0.00027397,7]
[328654048,1717679460016,-500.0,0.00027397,4]
[328654049,1717679460025,-230.244897,0.00027397,7]
[328654050,1717679460035,-230.244897,0.00027397,7]
[328654051,1717679460046,-500.0,0.00027397,4]
[328654052,1717679460055,-512.85,0.00027397,4]
[328654053,1717679460065,-500.0,0.00027397,4]
[328654054,1717679460074,-500.0,0.00027397,4]
[328654055,1717679460084,-230.244897,0.00027397,7]
[328654056,1717679460094,-500.0,0.00027397,4]
[328654057,1717679460104,-1767.67,0.00027397,4]
[328654058,1717679460113,-230.244897,0.00027397,7]
[328654059,1717679460123,-500.0,0.00027397,4]
[328654060,1717679460132,-752.38,0.00027397,4]
[328654061,1717679460141,-230.244897,0.00027397,7]
[328654062,1717679460151,-958.27,0.00027397,4]
[328654063,1717679460161,-500.0,0.00027397,4]
[328654064,1717679460171,-500.0,0.00027397,4]
[328654065,1717679460180,-5066.64,0.00027397,4]
[328654066,1717679460189,-500.0,0.00027397,4]
[328654067,1717679460198,-500.0,0.00027397,4]
[328654068,1717679460208,-500.0,0.00027397,4]
[328654069,1717679460218,-500.0,0.00027397,4]
[328654070,1717679460230,-500.0,0.00027397,4]
[328654071,1717679460239,-500.0,0.00027397,4]
[328654072,1717679460250,-990.96,0.00027397,4]
[328654073,1717679460259,-500.0,0.00027397,4]
[328654074,1717679460268,-500.0,0.00027397,4]
[328654075,1717679460277,-500.0,0.00027397,4]
[328654076,1717679460289,-500.0,0.00027397,4]
[328654077,1717679460301,-1493.85,0.00027397,4]
[328654078,1717679460310,-52221.04997071,0.00027397,2]
[328654079,1717679460320,-500.0,0.00027397,4]
[328654080,1717679460331,-500.0,0.00027397,4]
[328654081,1717679460340,-500.0,0.00027397,4]
[328654082,1717679460350,-500.0,0.00027397,4]
[328654083,1717679460359,-578.41,0.00027397,4]
[328654084,1717679460370,-1252.58,0.00027397,4]
[328654085,1717679460379,-500.0,0.00027397,4]
[328654086,1717679460389,-2017.26,0.00027397,4]
[328654087,1717679460398,-2717.48,0.00027397,4]
[328654088,1717679460408,-500.0,0.00027397,4]
[328654089,1717679460417,-599.8,0.00027397,4]
[328654090,1717679460427,-854.52,0.00027397,4]
[328654091,1717679460437,-1117.36,0.00027397,4]
[328654092,1717679460446,-500.0,0.00027397,4]
[328654093,1717679460456,-151.0,0.00027397,7]
[328654094,1717679460466,-539.30673537,0.00027397,4]
[328654095,1717679460475,-151.0,0.00027397,7]
[328654096,1717679460484,-500.0,0.00027397,4]
[328654097,1717679460493,-500.0,0.00027397,4]
[328654098,1717679460502,-500.0,0.00027397,4]
[328654099,1717679460512,-500.0,0.00027397,4]
[328654100,1717679460521,-151.0,0.00027397,7]
[328654101,1717679460531,-543.39869913,0.00027397,4]
[328654102,1717679460540,-500.0,0.00027397,4]
[328654103,1717679460551,-500.0,0.00027397,4]
[328654104,1717679460561,-500.0,0.00027397,4]
[328654105,1717679460571,-551.96,0.00027397,4]
[328654106,1717679460580,-500.0,0.00027397,4]
[328654107,1717679460590,-500.0,0.00027397,4]
[328654108,1717679460599,-812.67,0.00027397,4]
[328654109,1717679460609,-500.0,0.00027397,4]
[328654110,1717679460618,-500.0,0.00027397,4]
[328654111,1717679460628,-2243.88,0.00027397,4]
[328654112,1717679460637,-1646.49,0.00027397,4]
[328654113,1717679460646,-500.0,0.00027397,4]
[328654114,1717679460656,-3051.26,0.00027397,4]
[328654115,1717679460666,-1040.93,0.00027397,4]
[328654116,1717679460675,-500.0,0.00027397,4]
[328654117,1717679460685,-500.0,0.00027397,4]
[328654118,1717679460694,-500.0,0.00027397,4]
[328654119,1717679460704,-506.50538559,0.00027397,4]
[328654120,1717679460714,-557.13,0.00027397,4]
[328654121,1717679460724,-151.0,0.00027397,7]
[328654122,1717679460734,-500.0,0.00027397,4]
[328654123,1717679460743,-151.0,0.00027397,7]
[328654124,1717679460754,-500.0,0.00027397,4]
[328654125,1717679460764,-151.0,0.00027397,7]
[328654126,1717679460774,-500.0,0.00027397,4]
[328654127,1717679460784,-151.0,0.00027397,7]
[328654128,1717679460794,-151.0,0.00027397,7]
[328654129,1717679460803,-522.0434148,0.00027397,4]
[328654130,1717679460812,-151.0,0.00027397,7]
[328654131,1717679460822,-2619.1,0.00027397,4]
[328654132,1717679460832,-500.0,0.00027397,4]
[328654133,1717679460841,-553.38,0.00027397,4]
[328654134,1717679460851,-151.0,0.00027397,7]
[328654135,1717679460861,-500.0,0.00027397,4]
[328654136,1717679460870,-151.0,0.00027397,7]
[328654137,1717679460879,-151.0,0.00027397,7]
[328654138,1717679460889,-1394.49,0.00027397,4]
[328654139,1717679460898,-500.0,0.00027397,4]
[328654140,1717679460907,-500.0,0.00027397,4]
[328654141,1717679460917,-536.71,0.00027397,4]
[328654142,1717679460926,-171.06,0.00027397,2]
[328654143,1717679460935,-192.613746,0.00027397,7]
[328654144,1717679460945,-151.0,0.00027397,7]
[328654145,1717679460954,-151.0,0.00027397,7]
[328654146,1717679460963,-151.0,0.00027397,7]
[328654147,1717679460973,-886.55,0.00027397,10]
[328654148,1717679460982,-151.0,0.000274,7]
[328654149,1717679460991,-300.3,0.000274,4]
[328654150,1717679461000,-844.6,0.00027534,2]
[328654151,1717679461009,-353.13,0.00027534,2]
[328654152,1717679461019,-164.06,0.00027534,2]
[328654153,1717679461028,-670.36,0.00027534,2]
[328654154,1717679461038,-150.0,0.00027534,2]
[328654155,1717679461047,-150.0,0.00027534,2]
[328654156,1717679461057,-164.06,0.00027534,2]
[328654157,1717679461066,-422.3,0.00027534,2]
[328654158,1717679461076,-353.13,0.00027534,2]
[328654159,1717679461085,-150.0,0.00027534,2]
[328654160,1717679461096,-163.63,0.00027534,2]
[328654161,1717679461105,-150.0,0.00027534,2]
[328654162,1717679461115,-422.3,0.00027534,2]
[328654163,1717679461124,-150.0,0.00027534,2]
[328654164,1717679461133,-150.0,0.00027534,2]
[328654165,1717679461143,-352.16,0.00027534,2]
[328654166,1717679461152,-164.06,0.00027534,2]
[328654167,1717679461162,-353.13,0.00027534,2]
[328654168,1717679461172,-422.3,0.00027534,2]
[328654169,1717679461181,-150.0,0.00027534,2]
[328654170,1717679461191,-150.0,0.00027534,2]
[328654171,1717679461200,-164.06,0.00027534,2]
[328654172,1717679461210,-150.0,0.00027534,2]
[328654173,1717679461220,-353.13,0.00027534,2]
[328654174,1717679461229,-422.3,0.00027534,2]
[328654175,1717679461240,-150.0,0.00027534,2]
[328654176,1717679461250,-150.0,0.00027534,2]
[328654177,1717679461260,-150.0,0.00027534,2]
[328654178,1717679461270,-164.06,0.00027534,2]
[328654179,1717679461280,-353.13,0.00027534,2]
[328654180,1717679461290,-150.0,0.00027534,2]
[328654181,1717679461303,-353.13,0.00027534,2]
[328654182,1717679461313,-164.06,0.00027534,2]
[328654183,1717679461323,-1486.58263112,0.00027614,2]
[328654184,1717679461333,-249.677882,0.00027615,2]
[328654185,1717679461342,-277.509594,0.00027615,2]
[328654186,1717679461351,-14822.38255,0.00027615,2]
[328654187,1717679461361,-195.903584,0.00027615,2]
[328654188,1717679461372,-19620.448538,0.00027615,2]
[328654189,1717679461381,-7878.592609,0.00027615,2]
[328654190,1717679461390,-199.648321,0.00027615,2]
[328654191,1717679461401,-166.451921,0.00027615,2]
[328654192,1717679461410,-177.973045,0.00027615,2]
[328654193,1717679461420,-223.798063,0.00027615,2]
[328654194,1717679461429,-1234.498954,0.00027615,2]
[328654195,1717679461439,-163.252993,0.00027615,2]
[328654196,1717679461449,-790.143935,0.00027615,2]
[328654197,1717679461458,-327.727924,0.00027615,2]
[328654198,1717679461467,-151.0,0.00027615,7]
[328654199,1717679461477,-151.0,0.00027615,7]
[328654200,1717679461487,-151.0,0.00027615,7]
[328654201,1717679461496,-295.471963,0.00027615,7]
[328654202,1717679461507,-295.471963,0.00027615,7]
[328654203,1717679461517,-599.55,0.0002767,4]
[328654204,1717679461526,-599.55,0.0002767,4]
[328654205,1717679461536,-610.46438923,0.00027671,4]
[328654206,1717679461545,-541.32797382,0.00027671,4]
[328654207,1717679461556,-417.57047115,0.00027671,4]
[328654208,1717679461565,-500.0,0.00027671,4]
[328654209,1717679461690,-500.0,0.00027671,4]
[328654210,1717679461700,-500.0,0.00027671,4]
[328654211,1717679461709,-506.0626329,0.00027671,4]
[328654212,1717679461719,-500.0,0.00027671,4]
[328654213,1717679461728,-500.0,0.00027671,4]
[328654214,1717679461738,-500.0,0.00027671,4]
[328654215,1717679461749,-500.0,0.00027671,4]
[328654216,1717679461758,-500.0,0.00027671,4]
[328654217,1717679461769,-602.06,0.00027671,4]
[328654218,1717679461779,-500.0,0.00027671,4]
[328654219,1717679461789,-500.0,0.00027671,4]
[328654220,1717679461799,-230.92410486,0.00027671,4]
[328654221,1717679461808,-545.53304602,0.00027671,4]
[328654222,1717679461820,-500.0,0.00027671,4]
[328654223,1717679461830,-527.08531409,0.00027671,4]
[328654224,1717679461840,-546.24241154,0.00027671,4]
[328654225,1717679461849,-500.0,0.00027671,4]
[328654226,1717679461859,-500.0,0.00027671,4]
[328654227,1717679461869,-500.0,0.00027671,4]
[328654228,1717679461878,-992.23482682,0.00027671,2]
[328654229,1717679461887,-500.0,0.00027671,4]
[328654230,1717679461897,-500.0,0.00027671,4]
[328654231,1717679461906,-500.0,0.00027671,4]
[328654232,1717679461915,-500.0,0.00027671,4]
[328654233,1717679461924,-500.0,0.00027671,4]
[328654234,1717679461933,-560.82608214,0.00027671,4]
[328654235,1717679461943,-500.0,0.00027671,4]